fUST/lending_fUST_20250802
["ID","MTS","AMOUNT","RATE_DAILY","PERIOD"]
[376765474,1754104246604,-500.0,0.00021873,2]
[376765475,1754104246614,-500.0,0.00021873,2]
[376765476,1754104246623,-501.02678825,0.00021873,2]
[376765477,1754104246634,-225.00863713,0.00021873,2]
[376765478,1754104246644,-462.78928365,0.00021873,2]
[376765479,1754104246654,-500.0,0.00021873,2]
[376765480,1754104246665,-275.27405246,0.00021873,2]
[376765481,1754104246675,-150.0,0.00021873,2]
[376765482,1754104246684,-500.0,0.00021873,2]
[376765483,1754104246694,-500.0,0.00021873,2]
[376765484,1754104246704,-500.0,0.00021873,2]
[376765485,1754104246713,-500.0,0.00021873,2]
[376765486,1754104246722,-500.0,0.00021873,2]
[376765487,1754104246732,-500.0,0.00021873,2]
[376765488,1754104246742,-500.0,0.00021873,2]
[376765489,1754104246751,-500.0,0.00021873,2]
[376765490,1754104246760,-500.0,0.00021873,2]
[376765491,1754104246769,-643.72862492,0.00021899,2]
[376765492,1754104246778,-500.0,0.00021899,2]
[376765493,1754104246787,-500.0,0.00021899,2]
[376765494,1754104246799,-500.0,0.00021899,2]
[376765495,1754104246808,-500.0,0.00021899,2]
[376765496,1754104246817,-500.0,0.00021899,2]
[376765497,1754104246826,-500.0,0.00021899,2]
[376765498,1754104246835,-500.0,0.00021899,2]
[376765499,1754104246844,-500.0,0.00021899,2]
[376765500,1754104246854,-500.0,0.00021899,2]
[376765501,1754104246863,-500.0,0.00021899,2]
[376765502,1754104246872,-500.0,0.00021899,2]
[376765503,1754104246881,-500.0,0.00021899,2]
[376765504,1754104246891,-365.80104301,0.00021899,2]
[376765505,1754104246900,-500.0,0.00021899,2]
[376765506,1754104246910,-500.0,0.00021899,2]
[376765507,1754104246920,-500.0,0.00021899,2]
[376765508,1754104246929,-500.0,0.00021899,2]
[376765509,1754104246938,-500.0,0.00021899,2]
[376765510,1754104246947,-500.0,0.00021899,2]
[376765511,1754104246956,-500.0,0.00021899,2]
[376765512,1754104246963,-500.0,0.00021899,2]
[376765513,1754104246971,-500.0,0.00021899,2]
[376765514,1754104246978,-500.0,0.00021899,2]
[376765515,1754104246987,-500.0,0.00021899,2]
[376765516,1754104246995,-496.81821903,0.00021899,2]
[376765517,1754104247005,-19055.07709152,0.000219,2]
[376765518,1754104247016,-9060.449544,0.000219,2]
[376765519,1754104247027,-528.59757652,0.000219,2]
[376765520,1754104247039,-503.83,0.000219,2]
[376765522,1754104660775,-152.77423636,0.00019675,2]
[376765523,1754104678914,152.77423635,0.00019675,2]
[376765524,1754104775829,152.77423635,0.00019675,2]
[376765527,1754104952635,130.84729094,0.00019178,2]
[376765528,1754104952662,41.17048006,0.00019178,2]
[376765540,1754105249343,10272.0637315,0.00027137,30]
[376765625,1754105432890,-300.0,0.00019674,2]
[376765627,1754105432900,-300.0,0.00019674,2]
[376765629,1754105432909,-300.0,0.00019674,2]
[376765631,1754105432919,-238.0,0.00019674,2]
[376765633,1754105432928,-300.0,0.00019674,2]
[376765635,1754105432938,-325.6,0.00019674,2]
[376765637,1754105432950,-874.4,0.00019674,2]
[376765640,1754105432959,-1196.56448238,0.00019675,2]
[376765643,1754105432970,-803.43551762,0.00019675,2]
[376765647,1754105432980,-2000.0,0.00019675,2]
[376765650,1754105432988,-2000.0,0.00019675,2]
[376765653,1754105433002,-2000.0,0.00019675,2]
[376765656,1754105433011,-237.624,0.00019675,2]
[376765659,1754105433020,-163.45821401,0.00019676,2]
[376765662,1754105433030,-463.34963432,0.00019774,2]
[376765665,1754105433040,-460.0,0.00019774,2]
[376765667,1754105433050,-460.0,0.00019775,2]
[376765670,1754105433060,-460.0,0.00019775,2]
[376765673,1754105433070,-461.24336292,0.00019775,2]
[376765676,1754105433080,-460.0,0.00019775,2]
[376765679,1754105433090,-461.4003493,0.00019775,2]
[376765682,1754105433100,-460.0,0.00019775,2]
[376765685,1754105433109,-463.56714303,0.00019775,2]
[376765688,1754105433119,-460.0,0.00019775,2]
[376765691,1754105433128,-460.0,0.00019775,2]
[376765694,1754105433138,-460.0,0.00019775,2]
[376765696,1754105433147,-460.0,0.00019775,2]
[376765698,1754105433156,-159.5117788,0.00019775,2]
[376765701,1754105433169,-49840.4882212,0.00019775,2]
[376765703,1754105433178,-460.0,0.00019776,2]
[376765704,1754105433188,-460.0,0.00019776,2]
[376765706,1754105433197,-535.53539149,0.00019776,2]
[376765708,1754105433206,-897.77,0.00019776,2]
[376765710,1754105433215,-460.0,0.00019776,2]
[376765712,1754105433225,-460.0,0.00019776,2]
[376765714,1754105433235,-460.0,0.00019776,2]
[376765716,1754105433245,-500.0,0.00020048,2]
[376765718,1754105433254,-500.0,0.00020048,2]
[376765720,1754105433264,-500.0,0.00020048,2]
[376765722,1754105433273,-500.0,0.00020048,2]
[376765724,1754105433282,-484.3279388,0.00020048,2]
[376765726,1754105433292,-460.0,0.00020048,2]
[376765728,1754105433301,-460.0,0.00020049,2]
[376765730,1754105433311,-357.86828676,0.00020049,2]
[376766121,1754105438698,-500.0,0.00020047,2]
[376766122,1754105438707,-314.2806752,0.00020047,2]
[376766123,1754105438717,-276.03643764,0.00020047,2]
[376766124,1754105438729,-500.0,0.00020047,2]
[376766125,1754105438739,-500.0,0.00020047,2]
[376766126,1754105438748,-500.0,0.00020047,2]
[376766127,1754105438757,-500.0,0.00020047,2]
[376766128,1754105438766,-500.0,0.00020047,2]
[376766129,1754105438775,-213.02486995,0.00020047,2]
[376766130,1754105438785,-500.0,0.00020047,2]
[376766131,1754105438794,-500.0,0.00020047,2]
[376766132,1754105438803,-500.0,0.00020047,2]
[376766133,1754105438979,-500.0,0.00020047,2]
[376766134,1754105438990,-179.82087695,0.00020047,2]
[376766135,1754105439003,-500.0,0.00020047,2]
[376766136,1754105439012,-500.0,0.00020047,2]
[376766137,1754105439021,-500.0,0.00020047,2]
[376766138,1754105439030,-500.0,0.00020047,2]
[376766139,1754105439039,-500.0,0.00020047,2]
[376766140,1754105439049,-500.0,0.00020047,2]
[376766141,1754105439058,-500.0,0.00020047,2]
[376766142,1754105439067,-500.0,0.00020047,2]
[376766143,1754105439076,-500.0,0.00020047,2]
[376766144,1754105439085,-500.0,0.00020047,2]
[376766145,1754105439094,-500.0,0.00020047,2]
[376766146,1754105439103,-500.0,0.00020047,2]
[376766147,1754105439111,-500.0,0.00020047,2]
[376766148,1754105439120,-500.0,0.00020047,2]
[376766149,1754105439129,-500.0,0.00020047,2]
[376766150,1754105439138,-591.22678211,0.00020047,2]
[376766151,1754105439146,-500.0,0.00020047,2]
[376766152,1754105439155,-500.0,0.00020047,2]
[376766153,1754105439163,-500.0,0.00020047,2]
[376766154,1754105439173,-500.0,0.00020047,2]
[376766155,1754105439182,-500.0,0.00020047,2]
[376766156,1754105439191,-500.0,0.00020047,2]
[376766157,1754105439200,-500.0,0.00020047,2]
[376766158,1754105439210,-500.0,0.00020047,2]
[376766159,1754105439219,-500.0,0.00020047,2]
[376766160,1754105439228,-632.71250871,0.00020047,2]
[376766161,1754105439237,-460.0,0.00020049,2]
[376766162,1754105439246,-460.0,0.00020049,2]
[376766163,1754105439255,-603.74,0.00020049,2]
[376766164,1754105439264,-460.0,0.00020049,2]
[376766165,1754105439274,-460.0,0.00020049,2]
[376766166,1754105439283,-462.47700293,0.00020049,2]
[376766167,1754105439292,-463.17973517,0.00020049,2]
[376766168,1754105439301,-460.0,0.00020049,2]
[376766169,1754105439310,-461.99983708,0.00020049,2]
[376766170,1754105439319,-460.0,0.00020049,2]
[376766171,1754105439328,-460.0,0.00020049,2]
[376766172,1754105439337,-460.0,0.00020049,2]
[376766173,1754105439346,-440.92772842,0.00020049,2]
[376766174,1754105439355,-2101.17,0.00020049,2]
[376766175,1754105439364,-460.0,0.00020049,2]
[376766176,1754105439373,-460.0,0.0002005,2]
[376766177,1754105439383,-897.77,0.0002005,2]
[376766178,1754105439392,-460.0,0.0002005,2]
[376766179,1754105439401,-460.0,0.0002005,2]
[376766180,1754105439410,-460.0,0.0002005,2]
[376766181,1754105439419,-200.0,0.00020169,15]
[376766182,1754105439428,-200.0,0.00020169,15]
[376766183,1754105439438,-200.0,0.00020169,15]
[376766184,1754105439447,-200.0,0.00020169,15]
[376766185,1754105439456,-200.0,0.00020169,15]
[376766186,1754105439465,-460.0,0.00020322,2]
[376766187,1754105439474,-460.0,0.00020323,2]
[376766188,1754105439484,-528.76532628,0.00020323,2]
[376766189,1754105439493,-460.0,0.00020323,2]
[376766190,1754105439503,-460.0,0.00020323,2]
[376766191,1754105439512,-460.0,0.00020323,2]
[376766192,1754105439522,-460.0,0.00020323,2]
[376766193,1754105439531,-2101.17,0.00020323,2]
[376766194,1754105439540,-460.0,0.00020323,2]
[376766195,1754105439549,-460.0,0.00020324,2]
[376766196,1754105439558,-897.77,0.00020324,2]
[376766197,1754105439568,-513.07165563,0.00020324,2]
[376766198,1754105439577,-460.0,0.00020324,2]
[376766199,1754105439587,-460.0,0.00020324,2]
[376766200,1754105439596,-151.0,0.00020596,2]
[376766201,1754105439605,-460.0,0.00020596,2]
[376766202,1754105439614,-151.0,0.00020597,2]
[376766203,1754105439623,-151.0,0.00020597,2]
[376766204,1754105439632,-460.0,0.00020597,2]
[376766205,1754105439641,-460.0,0.00020597,2]
[376766206,1754105439651,-460.0,0.00020597,2]
[376766207,1754105439660,-460.0,0.00020597,2]
[376766208,1754105439669,-460.0,0.00020597,2]
[376766209,1754105439678,-174.30968906,0.00020597,2]
[376766210,1754105439695,-1926.86031094,0.00020597,2]
[376766211,1754105439704,-460.0,0.00020597,2]
[376766212,1754105439714,-460.0,0.00020598,2]
[376766213,1754105439723,-897.77,0.00020598,2]
[376766214,1754105439733,-309.53,0.00020598,2]
[376766215,1754105439742,-460.0,0.00020598,2]
[376766216,1754105439751,-154.85765,0.00020599,2]
[376766217,1754105439762,-151.0,0.00020868,2]
[376766218,1754105439771,-151.0,0.00020868,2]
[376766219,1754105439781,-151.0,0.00020868,2]
[376766220,1754105439790,-151.0,0.00020868,2]
[376766221,1754105439799,-151.0,0.00020868,2]
[376766222,1754105439810,-151.0,0.00020868,2]
[376766223,1754105439819,-151.0,0.00020868,2]
[376766224,1754105439828,-151.0,0.00020868,2]
[376766225,1754105439837,-155.611,0.00020868,2]
[376766226,1754105439847,-460.0,0.0002087,2]
[376766227,1754105439857,-151.0,0.00020871,2]
[376766228,1754105439866,-157.947734,0.00020871,2]
[376766229,1754105439875,-460.0,0.00020871,2]
[376766230,1754105439885,-460.0,0.00020871,2]
[376766231,1754105439894,-71.80451428,0.00020871,2]
[376766232,1754105439905,-388.19548572,0.00020871,2]
[376766233,1754105439915,-60.42451428,0.00020871,2]
[376766234,1754105439926,-399.57548572,0.00020871,2]
[376766235,1754105439935,-253.78425369,0.00020871,2]
[376766236,1754105439945,-118.74120766,0.00020871,2]
[376766353,1754105443643,-115.20294583,0.00020871,2]
[376766356,1754105443664,-1867.22584651,0.00020871,2]
[376766358,1754105443673,-441.73452281,0.00020871,2]
[376766462,1754105446610,-18.26547719,0.00020871,2]
[376766463,1754105446619,-460.0,0.00020872,2]
[376766464,1754105446628,-129.84943997,0.00020872,2]
[376766465,1754105446665,-767.92056003,0.00020872,2]
[376766466,1754105446674,-147.70452281,0.0002089,2]
[376766467,1754105446721,-1851.66199209,0.0002089,2]
[376766471,1754105446779,-121.6717422,0.0002089,2]
[376766472,1754105446788,-153.232485,0.00020968,2]
[376766473,1754105446798,-500.40054928,0.00020973,2]
[376766474,1754105446807,-500.0,0.00020973,2]
[376766475,1754105446817,-500.0,0.00020973,2]
[376766476,1754105446826,-500.0,0.00020973,2]
[376766477,1754105446835,-500.0,0.00020973,2]
[376766478,1754105446843,-152.790476,0.0002098,2]
[376766479,1754105446852,-674.92,0.0002098,3]
[376766480,1754105446861,-337.46,0.0002098,3]
[376766481,1754105446870,-168.73,0.0002098,3]
[376766482,1754105446879,-506.23,0.0002098,3]
[376766483,1754105446888,-1445.68,0.0002098,10]
[376766484,1754105446898,-151.0,0.0002099,2]
[376766485,1754105446907,-161.768701,0.0002099,2]
[376766486,1754105446916,-151.0,0.0002099,2]
[376766487,1754105446925,-100000.0,0.0002099,2]
[376766488,1754105446935,-151.529057,0.0002099,2]
[376766489,1754105446944,-152.860395,0.0002099,2]
[376766490,1754105446954,-151.0,0.0002099,2]
[376766491,1754105446963,-151.0,0.0002099,2]
[376766492,1754105446974,-151.0,0.0002099,2]
[376766493,1754105446983,-151.0,0.0002099,2]
[376766494,1754105446993,-156.928631,0.0002099,2]
[376766495,1754105447004,-151.0,0.0002099,2]
[376766496,1754105447014,-151.0,0.0002099,2]
[376766497,1754105447023,-151.0,0.0002099,2]
[376766498,1754105447033,-243.840679,0.0002099,2]
[376766499,1754105447045,-306.0,0.00021032,2]
[376766500,1754105447054,-460.0,0.00021068,2]
[376766501,1754105447063,-151.763279,0.00021144,2]
[376766502,1754105447074,-153.462411,0.00021144,2]
[376766503,1754105447083,-248.828015,0.00021144,2]
[376766504,1754105447092,-151.0,0.00021144,2]
[376766505,1754105447101,-541.81699384,0.00021144,2]
[376766506,1754105447111,-333.7,0.00021145,2]
[376766507,1754105447120,-460.0,0.00021145,2]
[376766508,1754105447130,-460.0,0.00021145,2]
[376766509,1754105447139,-460.0,0.00021145,2]
[376766510,1754105447148,-2101.17,0.00021145,2]
[376766511,1754105447157,-460.0,0.00021145,2]
[376766512,1754105447167,-460.0,0.00021146,2]
[376766513,1754105447176,-897.77,0.00021146,2]
[376766514,1754105447185,-160.0,0.00021163,2]
[376766515,1754105447195,-12646.87439643,0.00021163,2]
[376766516,1754105447205,-841.70373825,0.00021163,2]
[376766517,1754105447214,-460.86285458,0.00021163,2]
[376766518,1754105447223,-961.42749728,0.00021243,2]
[376766519,1754105447232,-867.9756621,0.00021315,2]
[376766520,1754105447242,-153.0,0.00021378,2]
[376766521,1754105447251,-518.65107263,0.00021419,2]
[376766522,1754105447260,-460.0,0.00021419,2]
[376766523,1754105447269,-460.0,0.00021419,2]
[376766524,1754105447278,-2101.17,0.00021419,2]
[376766525,1754105447288,-460.0,0.00021419,2]
[376766526,1754105447297,-460.0,0.0002142,2]
[376766527,1754105447306,-897.77,0.0002142,2]
[376766528,1754105447315,-420.0,0.0002143,2]
[376766529,1754105447324,-503.64644703,0.00021521,2]
[376766530,1754105447333,-1000.0,0.00021521,2]
[376766531,1754105447342,-502.85679222,0.00021521,2]
[376766532,1754105447351,-1000.0,0.00021521,2]
[376766533,1754105447361,-460.0,0.00021693,2]
[376766534,1754105447370,-460.0,0.00021693,2]
[376766535,1754105447380,-2101.17,0.00021693,2]
[376766536,1754105447389,-460.0,0.00021693,2]
[376766537,1754105447398,-460.0,0.00021694,2]
[376766538,1754105447407,-897.77,0.00021694,2]
[376766539,1754105447416,-151.76468852,0.00021694,2]
[376766540,1754105447425,-500.0,0.00021694,2]
[376766541,1754105447434,-600.0,0.00021699,2]
[376766542,1754105447443,-450.61003745,0.00021799,2]
[376766543,1754105447453,-500.0,0.00021799,2]
[376766544,1754105447462,-500.0,0.00021799,2]
[376766545,1754105447471,-500.0,0.00021799,2]
[376766546,1754105447480,-500.0,0.00021799,2]
[376766547,1754105447490,-500.0,0.00021799,2]
[376766548,1754105447499,-500.0,0.00021799,2]
[376766549,1754105447508,-500.0,0.00021799,2]
[376766550,1754105447517,-177.0152644,0.00021799,2]
[376766551,1754105447527,-500.0,0.00021799,2]
[376766552,1754105447536,-500.0,0.00021799,2]
[376766553,1754105447546,-500.0,0.00021799,2]
[376766554,1754105447555,-500.0,0.00021799,2]
[376766555,1754105447564,-500.0,0.00021799,2]
[376766556,1754105447573,-500.0,0.00021799,2]
[376766557,1754105447583,-500.0,0.00021799,2]
[376766558,1754105447592,-500.0,0.00021799,2]
[376766559,1754105447602,-630.0,0.00021799,2]
[376766560,1754105447611,-500.0,0.00021799,2]
[376766561,1754105447620,-151.0,0.000218,2]
[376766562,1754105447630,-160.0,0.00021869,2]
[376766563,1754105447639,-502.99712507,0.00021873,2]
[376766564,1754105447648,-501.67842827,0.00021873,2]
[376766565,1754105447657,-501.09641049,0.00021873,2]
[376766566,1754105447667,-500.0,0.00021873,2]
[376766567,1754105447676,-500.0,0.00021873,2]
[376766568,1754105447685,-501.71491162,0.00021873,2]
[376766569,1754105447694,-501.47960783,0.00021873,2]
[376766570,1754105447703,-500.0,0.00021873,2]
[376766571,1754105447712,-500.0,0.00021873,2]
[376766572,1754105447722,-500.0,0.00021873,2]
[376766573,1754105447731,-500.0,0.00021873,2]
[376766574,1754105447740,-500.0,0.00021873,2]
[376766575,1754105447749,-500.0,0.00021873,2]
[376766576,1754105447758,-500.0,0.00021873,2]
[376766577,1754105447767,-501.09124422,0.00021873,2]
[376766578,1754105447776,-500.0,0.00021873,2]
[376766579,1754105447785,-501.44947203,0.00021873,2]
[376766580,1754105447795,-500.0,0.00021873,2]
[376766581,1754105447803,-500.0,0.00021873,2]
[376766582,1754105447812,-500.0,0.00021873,2]
[376766583,1754105447821,-423.28316058,0.00021873,2]
[376766584,1754105447830,-500.0,0.00021873,2]
[376766585,1754105447839,-151.656296,0.00021873,2]
[376766586,1754105447848,-2121.0382571,0.00021876,2]
[376766587,1754105447858,-151.0,0.00021899,2]
[376766588,1754105447867,-178938.01578796,0.000219,2]
[376766589,1754105447876,-219.02156706,0.000219,2]
[376766590,1754105447885,-152.807535,0.000219,2]
[376766591,1754105447894,-152.850982,0.000219,2]
[376766592,1754105447903,-151.0,0.000219,2]
[376766593,1754105447912,-250.36115527,0.00021903,2]
[376766594,1754105447921,-567.78161,0.00021918,2]
[376766595,1754105447930,-567.78161,0.00021918,2]
[376766596,1754105447939,-567.78161,0.00021918,2]
[376766597,1754105447949,-567.78161,0.00021918,2]
[376766598,1754105447958,-150.0,0.00021918,2]
[376766599,1754105447968,-500.0,0.00021918,2]
[376766600,1754105447978,-567.08277924,0.00021967,2]
[376766601,1754105447988,-460.0,0.00021967,2]
[376766602,1754105447999,-2101.17,0.00021967,2]
[376766603,1754105448007,-460.0,0.00021967,2]
[376766604,1754105448017,-500.0,0.00021968,2]
[376766605,1754105448027,-460.0,0.00021968,2]
[376766606,1754105448036,-897.77,0.00021968,2]
[376766607,1754105448047,-151.621224,0.0002197,7]
[376766608,1754105448057,-151.0,0.0002197,7]
[376766609,1754105448067,-567.78161,0.0002197,7]
[376766610,1754105448076,-567.78161,0.0002197,7]
[376766611,1754105448086,-506.4151469,0.00022068,2]
[376766612,1754105448096,-734.94094948,0.00022068,2]
[376766613,1754105448105,-163.45821398,0.0002213,2]
[376766614,1754105448115,-162.5192371,0.00022137,2]
[376766615,1754105448124,-153.549557,0.00022137,2]
[376766616,1754105448252,-578.5960598,0.00022137,2]
[376766617,1754105448262,-578.5960598,0.00022137,2]
[376766618,1754105448272,-153.0,0.00022137,2]
[376766619,1754105448282,-200.0,0.00022145,15]
[376766620,1754105448292,-200.0,0.00022145,15]
[376766621,1754105448302,-200.0,0.00022145,15]
[376766622,1754105448312,-200.0,0.00022145,15]
[376766623,1754105448322,-200.0,0.00022145,15]
[376766624,1754105448331,-200.0,0.00022145,15]
[376766625,1754105448342,-200.0,0.00022145,15]
[376766626,1754105448352,-500.0,0.00022192,2]
[376766627,1754105448362,-11322.97,0.000222,2]
[376766628,1754105448371,-151.0,0.000222,5]
[376766629,1754105448382,-151.0,0.000222,7]
[376766630,1754105448392,-460.0,0.00022241,2]
[376766631,1754105448402,-2101.17,0.00022241,2]
[376766632,1754105448412,-562.13171324,0.00022241,2]
[376766633,1754105448421,-500.0,0.00022242,2]
[376766634,1754105448430,-460.0,0.00022242,2]
[376766635,1754105448439,-897.77,0.00022242,2]
[376766636,1754105448449,-153.747694,0.00022243,7]
[376766637,1754105448459,-567.78161,0.00022243,7]
[376766638,1754105448469,-567.78161,0.00022243,7]
[376766639,1754105448479,-823.536,0.00022252,2]
[376766640,1754105448489,-179.12478406,0.00022252,2]
[376766641,1754105448499,-1529.91,0.000223,7]
[376766642,1754105448508,-1349.84,0.0002235,3]
[376766643,1754105448518,-674.92,0.0002235,3]
[376766644,1754105448527,-337.46,0.0002235,3]
[376766645,1754105448537,-260.0,0.00022417,2]
[376766646,1754105448547,-1000.0,0.00022421,2]
[376766647,1754105448556,-1000.0,0.00022421,2]
[376766648,1754105448566,-1000.0,0.00022421,2]
[376766649,1754105448577,-153.18402389,0.00022421,2]
[376766650,1754105448587,-501.36967847,0.00022421,2]
[376766651,1754105448596,-500.95960875,0.00022421,2]
[376766652,1754105448605,-1000.0,0.00022421,2]
[376766653,1754105448615,-1000.0,0.00022421,2]
[376766654,1754105448625,-1006.60572033,0.00022421,2]
[376766655,1754105448634,-1000.0,0.00022421,2]
[376766656,1754105448644,-1000.0,0.00022421,2]
[376766657,1754105448654,-1000.0,0.00022421,2]
[376766658,1754105448663,-1000.0,0.00022421,2]
[376766659,1754105448673,-1000.0,0.00022421,2]
[376766660,1754105448682,-151.0,0.00022421,7]
[376766661,1754105448692,-150.30202841,0.00022466,2]
[376766662,1754105448700,-500.0,0.00022466,2]
[376766663,1754105448710,-460.0,0.00022515,2]
[376766664,1754105448720,-2101.17,0.00022515,2]
[376766665,1754105448729,-500.0,0.00022516,2]
[376766666,1754105448739,-460.0,0.00022516,2]
[376766667,1754105448749,-897.77,0.00022516,2]
[376766668,1754105448758,-151.0,0.00022518,7]
[376766669,1754105448768,-500.0,0.00022532,2]
[376766670,1754105448777,-567.78161,0.00022567,7]
[376766671,1754105448787,-567.78161,0.00022567,7]
[376766672,1754105448796,-151.0,0.000226,9]
[376766673,1754105448806,-500.0,0.0002274,2]
[376766674,1754105448816,-460.0,0.00022789,2]
[376766675,1754105448826,-2101.17,0.00022789,2]
[376766676,1754105448836,-500.0,0.0002279,2]
[376766677,1754105448846,-460.0,0.0002279,2]
[376766678,1754105448856,-897.77,0.0002279,2]
[376766679,1754105448866,-600.0,0.00022795,2]
[376766680,1754105448876,-151.932771,0.00022795,7]
[376766681,1754105448886,-642.95,0.000228,7]
[376766682,1754105448896,-2121.0382571,0.00022861,2]
[376766683,1754105448906,-150.0,0.00022885,2]
[376766684,1754105448915,-151.0,0.000229,8]
[376766685,1754105448925,-151.0,0.000229,9]
[376766686,1754105448934,-60056.47476144,0.00022924,2]
[376766687,1754105448944,-151.0,0.00022924,7]
[376766688,1754105448953,-1776.7,0.00022926,4]
[376766689,1754105448963,-155.0,0.00022955,2]
[376766690,1754105448973,-578.5960598,0.00022959,2]
[376766691,1754105448982,-153.0,0.00022959,2]
[376766692,1754105448991,-153.0,0.00022959,2]
[376766693,1754105449004,-153.0,0.00022959,2]
[376766694,1754105449013,-153.0,0.00022959,2]
[376766695,1754105449023,-153.0,0.00022959,2]
[376766696,1754105449032,-153.0,0.00022959,2]
[376766697,1754105449042,-153.0,0.00022959,2]
[376766698,1754105449052,-407.34500325,0.00022965,2]
[376766699,1754105449061,-501.6487974,0.00022968,2]
[376766700,1754105449071,-501.64517611,0.00022968,2]
[376766701,1754105449080,-1500.0,0.00022968,2]
[376766702,1754105449091,-1003.98411995,0.00022968,2]
[376766703,1754105449100,-1500.0,0.00022968,2]
[376766704,1754105449109,-1003.03407207,0.00022968,2]
[376766705,1754105449119,-508.9197559,0.00022968,2]
[376766706,1754105449128,-421.10401138,0.00022968,2]
[376766707,1754105449137,-1021.44997196,0.00022968,2]
[376766708,1754105449147,-201.14621856,0.00022973,2]
[376766709,1754105449157,-151.0,0.0002299,7]
[376766710,1754105449166,-160.0,0.0002299,7]
[376766711,1754105449177,-567.78161,0.0002299,7]
[376766712,1754105449187,-567.78161,0.0002299,7]
[376766713,1754105449196,-215.0795835,0.0002299,7]
[376766714,1754105449205,-216.22890603,0.00023,3]
[376766715,1754105449215,-1568.39593258,0.00023,2]
[376766716,1754105449224,-151.0,0.00023,6]
[376766717,1754105449233,-160.0,0.00023,2]
[376766718,1754105449242,-151.0,0.00023,7]
[376766719,1754105449251,-500.0,0.00023014,2]
[376766720,1754105449261,-460.0,0.00023063,2]
[376766721,1754105449270,-2101.17,0.00023063,2]
[376766722,1754105449279,-500.0,0.00023064,2]
[376766723,1754105449289,-460.0,0.00023064,2]
[376766724,1754105449298,-897.77,0.00023064,2]
[376766725,1754105449307,-290.17011177,0.0002308,2]
[376766726,1754105449316,-5520.93,0.000231,7]
[376766727,1754105449325,-567.78161,0.00023115,7]
[376766728,1754105449335,-567.78161,0.00023115,7]
[376766729,1754105449344,-397.2554834,0.00023198,2]
[376766730,1754105449353,-150.0,0.00023252,2]
[376766731,1754105449363,-2151.172,0.00023269,2]
[376766732,1754105449372,-500.0,0.00023288,2]
[376766733,1754105449381,-151.0,0.000233,6]
[376766734,1754105449390,-151.0,0.000233,5]
[376766735,1754105449400,-1776.7,0.00023312,5]
[376766736,1754105449409,-460.0,0.00023337,2]
[376766737,1754105449418,-2101.17,0.00023337,2]
[376766738,1754105449428,-500.0,0.00023338,2]
[376766739,1754105449437,-460.0,0.00023338,2]
[376766740,1754105449446,-897.77,0.00023338,2]
[376766741,1754105449455,-587.0,0.00023343,2]
[376766742,1754105449464,-151.0,0.000234,10]
[376766743,1754105449473,-250.0,0.00023433,2]
[376766744,1754105449482,-151.0,0.00023489,7]
[376766745,1754105449492,-974.088,0.00023489,2]
[376766746,1754105449501,-637.908,0.00023489,2]
[376766747,1754105449509,-407.005,0.00023489,2]
[376766748,1754105449519,-507.44602392,0.00023516,2]